{"text_format":"3","workbook":"xlsx","n_sheets":1,"sheets":["Hoja1"],"read":"whole","date_system":"1900"}

{"sheet":"Hoja1","index":0,"n_rows":112,"n_cols":6,"rows_kept":112}
["PROGRAMA - Informe mensual de Nacional AM y FM / Crisol FM de enero a diciembre 2025","TEMÁTICA","EMISIONES MENSUALES ","DURACIÓN EN HORAS ","TOTAL DE HORAS ","EMISORA EN LA QUE SE TRANSMITE "]
["Acontecer Electoral","Institucional/Orientación",{"$f":"8+8+6+8+8+8+5+4+5+4+4+5","v":73},0.5,"36h con 30 min","NacionalFM/AM"]
["ACODECO Radio","Institucional/Orientación",{"$f":"4+4+4+4+4+4+4+4+4+5+4+3","v":48},0.5,"25h 30 min","NacionalFM/AM"]
["Activación en Albrook Mall","Promocional/Musical",{"$f":"1+1","v":2},"2 a 4",{"$f":"4+2","v":6},"NacionalFM/AM/Crisol FM"]
["Activación en Los Andes Mall","Promocional/Musical",1,2,2,"NacionalFM/AM/Crisol FM"]
["Activacion Feria de David","Promocional/Musical",4,2,8,"NacionalFM/AM/Crisol FM"]
["Activación Pre Carnaval","Promocional/Musical",1,2,2,"NacionalFM/AM/Crisol FM"]
["Activación Primera Dama","Promocional/Musical",1,1,1,"NacionalFM/AM/Crisol FM"]
["Actualidad Deportiva ","Deportivo",{"$f":"21+20+20+20+21+21+23+21+22+23+15+19","v":246},1,{"$f":"+Tabla2[[#This Row],[EMISIONES MENSUALES ]]*Tabla2[[#This Row],[DURACIÓN EN HORAS ]]","v":246},"Nacional FM/AM y Crisol FM "]
["Actualidad Laboral","Institucional/Orientación",{"$f":"8+8+3+10+4+8+5+4+5+5+4+5","v":69},0.5,"34h con 30 min","NacionalFM/AM"]
["ADN Deportivo","Deportes",{"$f":"4+4+5+3+2","v":18},1,{"$f":"+Tabla2[[#This Row],[EMISIONES MENSUALES ]]*Tabla2[[#This Row],[DURACIÓN EN HORAS ]]","v":18},"NacionalFM/AM"]
["A Media Mañana","Farándula/Musical",{"$f":"42+42+42+23+21+22+23+14+21","v":250},1,{"$f":"+Tabla2[[#This Row],[EMISIONES MENSUALES ]]*Tabla2[[#This Row],[DURACIÓN EN HORAS ]]","v":250},"Nacional FM/AM"]
["A tu Salud Mental","Orientación/Salud",{"$f":"3+4+4+8+4+4+4+5","v":36},0.5,16,"NacionalFM/AM"]
["Beats","Entrenenimiento/Musical/Cultural",{"$f":"3+4+4+4+4+4+4+5+3+5","v":40},1,{"$f":"+Tabla2[[#This Row],[EMISIONES MENSUALES ]]*Tabla2[[#This Row],[DURACIÓN EN HORAS ]]","v":40},"Crisol FM"]
["Boletín deportivo ","Cápsulas Deportivas",{"$f":"260+260+260+260+260+260+260+260+260+260+260+260","v":3120}," 2 minutos","86h 40 min","Crisol FM"]
["Boletín Informativo","Noticioso",{"$f":"620+620+620+620+620+620+620+620+620+620+620+620","v":7440},"4 minutos","373h 28 min","Nacional FM/AM"]
["Cápsula Bulling","Informativa/Motivadora",{"$f":"300+300+300+300+300","v":1500},"50 segundos",{"$f":"24+24+24+24+24","v":120},"Nacional FM/AM Crisol FM"]
["Cápsula de confección de cutarras","Informativa/Motivadora",{"$f":"300+300+300+300+300+300+300","v":2100},"50 segundos",{"$f":"24+24+24+24+24+24+24","v":168},"Nacional FM/AM Crisol FM"]
["Cápsulas de prevención de SINAPROC","Institucional/Orientación",{"$f":"672+672+672+672+672+672+672+672+672+672+672","v":7392},"30 segundos",{"$f":"3+3+3+3+3+3+3+3+3+3+3","v":33},"NacionalFM/AM/Crisol FM"]
["Cápsula Mes de la etnia negra","Cultural/religiosa",627,"30 segundos",3,"Nacional FM/AM"]
["Cápsulas Patrias","Informativa/Motivadora",{"$f":"300+300","v":600},"50 segundos",{"$f":"24+24","v":48},"NacionalFM/AM/Crisol FM"]
["Cápsulas Productores","Informativa/Motivadora",{"$f":"627+627+627","v":1881},"30 segundos",{"$f":"3+3+3","v":9},"NacionalFM/AM/Crisol FM"]
["Cápsula de Semana Santa","Cultural/religiosa",627,"30 segundos",3,"Nacional FM/AM"]
["Capsula día del amor y la amistad","Cultural",{"$f":"672+672","v":1344},"30 segundos",{"$f":"3+3","v":6},"NacionalFM/AM/Crisol FM"]
["Cápsulas Voy y Vengo","Preventivas de carnaval",1220,"30 segundos",7,"NacionalFM/AM/Crisol FM"]
["Cine con Sabor ","Entretenimiento",{"$f":"4+8+8+6+8+8","v":42},1,{"$f":"+Tabla2[[#This Row],[EMISIONES MENSUALES ]]*Tabla2[[#This Row],[DURACIÓN EN HORAS ]]","v":42},"Nacional FM/AM y Crisol FM "]
["Conexión Asia","Anime/juvenil/artístico",{"$f":"17+16+16+18","v":67},1,{"$f":"+Tabla2[[#This Row],[EMISIONES MENSUALES ]]*Tabla2[[#This Row],[DURACIÓN EN HORAS ]]","v":67},"Crisol FM"]
["Conexión 80","Musical",{"$f":"4+4+4+4+8+8+8+10+8+9+10+5","v":82},1,{"$f":"+Tabla2[[#This Row],[EMISIONES MENSUALES ]]*Tabla2[[#This Row],[DURACIÓN EN HORAS ]]","v":82},"Crisol FM"]
["El jorón de los recuerdos","Musical/Folclórico",{"$f":"8+8+10+8+8+8+8+10+10+8+9+12","v":107},2,{"$f":"+Tabla2[[#This Row],[EMISIONES MENSUALES ]]*Tabla2[[#This Row],[DURACIÓN EN HORAS ]]","v":214},"NacionalFM/AM/Crisol FM"]
["El Kraken","Deportivo/informativo",{"$f":"1+1+1+9+4+9+9+11+3","v":48},1,{"$f":"+Tabla2[[#This Row],[EMISIONES MENSUALES ]]*Tabla2[[#This Row],[DURACIÓN EN HORAS ]]","v":48},"Nacional FM/AM"]
["Especial Año Nuevo Resumen Noticias","Noticioso",3,3,9,"Nacional FM/AM/Crisol FM"]
["Especial Año Nuevo Resumen Internacional","Noticioso",2,0.5,1,"Nacional FM/AM/Crisol FM"]
["Especial Año Nuevo Fiesta de Acordeones","Entretenimiento/Musical",2,1,2,"Nacional FM/AM/Crisol FM"]
["Especial Año Nuevo DJ Brin","Entretenimiento/Musical",1,3,3,"Nacional FM/AM/Crisol FM"]
["Especial Año Nuevo DJ Renato","Entretenimiento/Musical",1,3,3,"Nacional FM/AM/Crisol FM"]
["Especial Año Nuevo DJ Máximo De León","Entretenimiento/Musical",1,3,3,"Nacional FM/AM/Crisol FM"]
["Especial Navideño DJ Renato","Entretenimiento/Musical",1,6,6,"Nacional FM/AM/Crisol FM"]
["Especial Navideño DJ Yala","Entretenimiento/Musical",1,3,3,"Nacional FM/AM/Crisol FM"]
["Especial Navideño Entre Mentes","Orientacion/Informativo",2,1,2,"Nacional FM/AM/Crisol FM"]
["Especial navideño DJ Máximo De León","Entretenimiento/Musical",1,3,3,"Nacional FM/AM/Crisol FM"]
["Especial Navideño Estrellas","Entretenimiento/Musical",1,1,1,"Nacional FM/AM/Crisol FM"]
["Especial Navideño Fabricio Velasquez","Entretenimiento/Musical",2,2,4,"Nacional FM/AM/Crisol FM"]
["Especial Navideño DJ Brin","Entretenimiento/Musical",1,3,3,"Nacional FM/AM/Crisol FM"]
["Estrellas","Musical",{"$f":"6+12+18+18+18+23+21+22+23+10+10","v":181},1,{"$f":"+Tabla2[[#This Row],[EMISIONES MENSUALES ]]*Tabla2[[#This Row],[DURACIÓN EN HORAS ]]","v":181},"Nacionall FM/AM"]
["Familia con propósito","Educativo/Familiar",4,0.5,4,"Nacional FM/AM"]
["Fiesta de Acordeones","Folclórico",{"$f":"4+4+4+4+4+4+4","v":28},1,{"$f":"+Tabla2[[#This Row],[EMISIONES MENSUALES ]]*Tabla2[[#This Row],[DURACIÓN EN HORAS ]]","v":28},"Nacional FM/AM y Crisol FM "]
["Frecuencia Rock","Entretenimiento/Musical",4,1,4,"Crisol FM"]
["Folkcast","Folclórico / cultural",{"$f":"4+4+3+4","v":15},1,{"$f":"+Tabla2[[#This Row],[EMISIONES MENSUALES ]]*Tabla2[[#This Row],[DURACIÓN EN HORAS ]]","v":15},"NacionalFM/AM"]
["ITSE","Institucional/Orientación",{"$f":"4+4+4+3+5+5+2+4+5+3+2","v":41},"0.5 a 4","47h 30 min","NacionalFM/AM"]
["La Bitácora del Pescador","Orientación/Informativo",{"$f":"2+8","v":10},0.5,{"$f":"+Tabla2[[#This Row],[EMISIONES MENSUALES ]]*Tabla2[[#This Row],[DURACIÓN EN HORAS ]]","v":5},"Nacional FM"]
["La Encomienda","Musical/Folclórico",{"$f":"21+22+21+21+21+21+23+21+22+23+19+21","v":256},"3 a 4",{"$f":"579+69+76+84","v":808},"Crisol FM"]
["La Hora 9","Noticioso",{"$f":"21+20","v":41},1,{"$f":"+Tabla2[[#This Row],[EMISIONES MENSUALES ]]*Tabla2[[#This Row],[DURACIÓN EN HORAS ]]","v":41},"Nacional FM/AM"]
["La Travesía","Música del Mundo/Cultural",{"$f":"4+3","v":7},1,{"$f":"+Tabla2[[#This Row],[EMISIONES MENSUALES ]]*Tabla2[[#This Row],[DURACIÓN EN HORAS ]]","v":7},"Nacional FM/AM"]
["La vida de colores","Motivacional investigativo",{"$f":"4+5+10+8+10+3","v":40},1,{"$f":"+Tabla2[[#This Row],[EMISIONES MENSUALES ]]*Tabla2[[#This Row],[DURACIÓN EN HORAS ]]","v":40},"Nacional FM/AM"]
["La Voz del Pueblo Diurem  y Voces de la Tierra ","Noticioso/Informativo/Pueblos Originarios",{"$f":"4+4+5+3+5+5+4+5+4+4+5+3","v":51},1,{"$f":"+Tabla2[[#This Row],[EMISIONES MENSUALES ]]*Tabla2[[#This Row],[DURACIÓN EN HORAS ]]","v":51},"Nacional FM/AM"]
["La Voz del Pueblo Guna ","Noticioso/Informativo/Pueblos Originarios",{"$f":"4+4+5+3+5+5+4+5+4+4+5+3","v":51},0.5,"25h 30 min","Crisol FM"]
["Noticiero Científico NCC y Retransmisión","Noticioso/Cultural/Tecnología",{"$f":"10+10+10+10+10+10+10+10+10+10+10+5","v":115},0.5,"57h 30 min","Nacional FM/AM "]
["Noticiero Mediodía Radio","Noticioso",{"$f":"21+20+21+21+21+21+23+21+22+23+16+21","v":251},1,{"$f":"+Tabla2[[#This Row],[EMISIONES MENSUALES ]]*Tabla2[[#This Row],[DURACIÓN EN HORAS ]]","v":251},"Nacional FM/AM "]
["Noticiero Nacional Vespertino Radio ","Noticioso",{"$f":"21+20+21+21+21+21+23+21+22+23+16+21","v":251},1,{"$f":"+Tabla2[[#This Row],[EMISIONES MENSUALES ]]*Tabla2[[#This Row],[DURACIÓN EN HORAS ]]","v":251},"Nacional FM/AM "]
["Noticiero Radio Nacional Matutino","Noticioso",{"$f":"21+20+21+21+21+21+23+21+22+23+16+21","v":251},2,{"$f":"+Tabla2[[#This Row],[EMISIONES MENSUALES ]]*Tabla2[[#This Row],[DURACIÓN EN HORAS ]]","v":502},"Nacional FM/AM "]
["Noticiero SERTV Estelar","Noticioso",{"$f":"21+20+21+21+21+21+23+21+22+23+16+21","v":251},2,{"$f":"+Tabla2[[#This Row],[EMISIONES MENSUALES ]]*Tabla2[[#This Row],[DURACIÓN EN HORAS ]]","v":502},"Crisol FM"]
["Noticiero SERTV Medio día ","Noticioso",{"$f":"21+20+21+21+21+21+23+21+22+23+16+21","v":251},1,{"$f":"+Tabla2[[#This Row],[EMISIONES MENSUALES ]]*Tabla2[[#This Row],[DURACIÓN EN HORAS ]]","v":251},"Crisol FM"]
["Orígenes y Legado","Historico/cultural",{"$f":"1+2+2","v":5},0.5,"2h 30 min","NacionalFM/AM"]
["Panamá Al Día","Noticioso/Análisis",{"$f":"32+42+42+42+23+21+22+20+13+14","v":271},1,{"$f":"+Tabla2[[#This Row],[EMISIONES MENSUALES ]]*Tabla2[[#This Row],[DURACIÓN EN HORAS ]]","v":271},"Nacional FM/AM"]
["Panorama Universitario","Informativo Universitario",{"$f":"8+8+4+6+5+5+4+5+4+4+5+3","v":61},0.5,"30h 30 min","Nacional FM/AM"]
["Planeta Pop Urbano","Musical",{"$f":"21+20+21+21+21+21+23+21+22+22+16+21","v":250},1,{"$f":"+Tabla2[[#This Row],[EMISIONES MENSUALES ]]*Tabla2[[#This Row],[DURACIÓN EN HORAS ]]","v":250},"Crisol FM"]
["Pregúntale a Mulino","Orientación/Informativo",{"$f":"3+2+8+2+6+6+5+1+2+2+4+4","v":45},1,{"$f":"+Tabla2[[#This Row],[EMISIONES MENSUALES ]]*Tabla2[[#This Row],[DURACIÓN EN HORAS ]]","v":45},"NacionalFM/AM/Crisol FM"]
["Playlist Recargado ","Musical",{"$f":"21+20+21+21+21+21+23+21+22+23+16+21","v":251},2,{"$f":"+Tabla2[[#This Row],[EMISIONES MENSUALES ]]*Tabla2[[#This Row],[DURACIÓN EN HORAS ]]","v":502},"Crisol FM"]
["Procuraduría Al día","Informativo/Institucional",{"$f":"4+4+4+4+4+4+2+4","v":30},0.5,{"$f":"+Tabla2[[#This Row],[EMISIONES MENSUALES ]]*Tabla2[[#This Row],[DURACIÓN EN HORAS ]]","v":15},"Nacional FM/AM"]
["Resumen de Farándula","Entretenimiento/Musical",{"$f":"4+4+4+5+5+4+5+4+4+5","v":44},"10 min","7h 20 min","Crisol FM"]
["Resumen Internacional de Noticias","Informativo",{"$f":"4+3+4+4+5+5+4+5+5+5+5","v":49},0.5,"24h 30 min","Nacional FM/AM"]
["Ranking Play","Farándula/Musical",{"$f":"2+2+4+4+5+5+4+5+5+4+4+4","v":48},1,{"$f":"+Tabla2[[#This Row],[EMISIONES MENSUALES ]]*Tabla2[[#This Row],[DURACIÓN EN HORAS ]]","v":48},"Crisol FM"]
["Renato en Casa","Entretenimiento/Musical",{"$f":"21+20+20+21+21+21+23+21+21+23+16+21","v":249},3,{"$f":"+Tabla2[[#This Row],[EMISIONES MENSUALES ]]*Tabla2[[#This Row],[DURACIÓN EN HORAS ]]","v":747},"Crisol FM"]
["Semanario Judicial / Órgano Judicial","Informativo/Órgano Judicial",{"$f":"4+4+4+4+5+5+4+5+4+5+3+3","v":50},0.5,25,"Nacional FM/AM"]
["SERTV Noticias Matutino","Noticioso",{"$f":"21+20+20+21+21+21+23+21+22+23+16+21","v":250},2,{"$f":"+Tabla2[[#This Row],[EMISIONES MENSUALES ]]*Tabla2[[#This Row],[DURACIÓN EN HORAS ]]","v":500},"Crisol FM"]
["Tercer Tiempo","Deportivo/Análisis",{"$f":"3+2+2+9+8+9+4+3","v":40},1,{"$f":"+Tabla2[[#This Row],[EMISIONES MENSUALES ]]*Tabla2[[#This Row],[DURACIÓN EN HORAS ]]","v":40},"Nacional FM/AM/"]
["Transmisión del Desfile Navideño"]
["Transmision Feria de David","Cultural",1,2,2,"NacionalFM/AM/Crisol FM"]
["Transmisión del Campeonato de Las Américas","Deportivo",4,2,8,"NacionalFM/AM/Crisol FM"]
["Transmision Canal de Panama","Noticioso",1,1,1,"NacionalFM/AM"]
["Transmisión Conference League","Deportivo",{"$f":"1+1+1","v":3},2,{"$f":"+Tabla2[[#This Row],[EMISIONES MENSUALES ]]*Tabla2[[#This Row],[DURACIÓN EN HORAS ]]","v":6},"Nacional FM/AM/Crisol FM"]
["Transmisión Conferencia de Navidad","Informativa/Motivadora",1,2,2,"Crisol FM"]
["Transmisión Consagración nuevo Papa","Histórico/Noticioso",{"$f":"1+1","v":2},4,{"$f":"4+4","v":8},"Nacional FM/AM/Crisol FM"]
["Transmisión especial Toro Guapo de Antón","Folclórico / cultural",3,4,12,"Crisol FM"]
["Transmisión Europa League ","Deportivo",{"$f":"1+1+1","v":3},2,{"$f":"+Tabla2[[#This Row],[EMISIONES MENSUALES ]]*Tabla2[[#This Row],[DURACIÓN EN HORAS ]]","v":6},"Nacional FM/AM/Crisol FM"]
["Transmisión Festival del Sombrero Pintao","Folclórico / cultural",3,4,12,"Nacional FM/AM/Crisol FM"]
["Transmisión del Festival del Almojábano","Folclórico Cultural",4,2,{"$f":"+Tabla2[[#This Row],[EMISIONES MENSUALES ]]*Tabla2[[#This Row],[DURACIÓN EN HORAS ]]","v":8},"Nacional FM/AM/Crisol FM"]
["Transmisión Manito Ocueño","Folclórico / cultural",3,4,12,"NacionalFM/AM/Crisol FM"]
["Transmisión Panamá Viejo","Noticiososo/Cultural",1,1,1,"NacionalFM/AM"]
["Transmisiones Feria del Libro","Cultural y educativo",7,2,14,"NacionalFM/AM/Crisol FM"]
["Transmisiones Feria de Artesanías","Folclórico / Cultural",{"$f":"1+3","v":4},2,{"$f":"2+6","v":8},"Nacional FM/AM/Crisol FM"]
["Transmision fiestas patrias","Musical/Folclórico/civico",9,8,72,"Crisol FM"]
["Transmisiones Santa Librada","Cultural / Religioso",2,3,6,"Nacional FM/AM/Crisol FM"]
["Transmisión Selección Femenina","Deportiva",{"$f":"1+1","v":2},2,{"$f":"2+2","v":4},"Nacional FM/AM/Crisol FM"]
["Transmisión Sepelio Papa Francisco","Histórico/Noticioso",1,4,4,"Nacional FM/AM/Crisol FM"]
["Transmisión Wegala Fest","Cultural",1,1,1,"NacionalFM/AM/Crisol FM"]
["Transmisiones del 9 de enero","Informativo",1,2,2,"Nacional FM/AM/Crisol FM"]
["Transmisiones del 2 de enero del Presidente","Informativo",1,4,4,"Nacional FM/AM/"]
["Transmisiones del Béisbol Juvenil","Deportivo",{"$f":"18+18+5+9+5+5","v":60},3,{"$f":"+Tabla2[[#This Row],[EMISIONES MENSUALES ]]*Tabla2[[#This Row],[DURACIÓN EN HORAS ]]","v":180},"NacionalFM/AM/Crisol FM"]
["Transmisiones de la Asamblea de Diputados","Político Social",{"$f":"17+20+20+20+9+9+9+16+16+18","v":154},"2 a 3",{"$f":"34+60+60+9+9+9+32+32+36","v":281},"NacionalFM/AM"]
["Transmisiones de Presidencia","Informativo",{"$f":"6+6+3+3+1+1+3+3","v":26},1,{"$f":"+Tabla2[[#This Row],[EMISIONES MENSUALES ]]*Tabla2[[#This Row],[DURACIÓN EN HORAS ]]","v":26},"NacionalFM/AM/Crisol FM"]
["Transmisiones especial La Encomienda","Folclorico cultural",1,4,4,"Crisol FM"]
["Transmision Festival de la Mejorana","Folclorico cultural",20,1,20,"NacionalFM/AM/Crisol FM"]
["Transmisiones Mil Pollera","Cultural/folclórico/Noticioso",1,9,9,"NacionalFM/AM/Crisol FM"]
["Transmisiones LPF","Deportivo",{"$f":"1+3+2+3+4+4+2+4+8+8+5","v":44},2,{"$f":"+Tabla2[[#This Row],[EMISIONES MENSUALES ]]*Tabla2[[#This Row],[DURACIÓN EN HORAS ]]","v":88},"NacionalFM/AM/Crisol FM"]
["Transmisión Panamá vs EL Salvador","Deportivo",1,9,9,"NacionalFM/AM/Crisol FM"]
["Transmisiones Primera Dama","Informativo",1,1,1,"Crisol FM"]
["Verano en tu radio Carnaval","Programación Carnaval",5,10,50,"NacionalFM/AM/Crisol FM"]
["Viento y marea","Informativo Institucional",{"$f":"1+1+1+1+2+2+2","v":10},0.5,{"$f":"+Tabla2[[#This Row],[EMISIONES MENSUALES ]]*Tabla2[[#This Row],[DURACIÓN EN HORAS ]]","v":5},"Nacional FM/AM"]
["Viva La Salsa","Musical/Cultural",{"$f":"4+4+4","v":12},2,{"$f":"+Tabla2[[#This Row],[EMISIONES MENSUALES ]]*Tabla2[[#This Row],[DURACIÓN EN HORAS ]]","v":24},"NacionalFM/AM"]
["Voces Latinas","Musical e Histórico",{"$f":"8+8+8+8+5+5+2+3+2+4+2","v":55},2,{"$f":"+Tabla2[[#This Row],[EMISIONES MENSUALES ]]*Tabla2[[#This Row],[DURACIÓN EN HORAS ]]","v":110},"Nacional FM/AM/Crisol FM"]
["Voces Latinas Románticas","Musical/Cultural",{"$f":"4+1","v":5},1,5,"NacionalFM/AM"]